Cogmind - Beta 16 @@@ ROGUE MODE // 2025.11.29 @ 03:59:43 Player: AngelSpirit Result: Destroyed by X4-XH3(R) with Subdweller Shrapnel Launcher Performance ------------- Evolutions (0) 0 Regions Visited (2) 400 Robots Destroyed (21) 105 Value Destroyed (557) 557 Prototype IDs (0) 0 Alien Tech Used (0) 0 Bonus (0) 0 TOTAL SCORE: 1062 Bonus ------- None Cogmind --------- Core Integrity 0/250 Matter 191/300 Energy 148/160 System Corruption 0% Temperature Cool (0) Movement Rolling (110) Ox2 Location -10/Subcaves Parts ------- > --- POWER (1) -------- Light Nuclear Core > --- PROPULSION (2) --- Wheel > --- UTILITY (2) ------ Medium Storage Unit Makeshift Light Armor Plating > --- WEAPON (2) ------- Subdweller Laser Light Cannon > --- INVENTORY (10) --- Subdweller Power Source Wheel Improved Heat Sink High-capacity Matter Pod (200) Sensor Array Sensor Array Light Cannon Datajack Peak State ------------ > --- POWER ------------ Light Nuclear Core > --- PROPULSION ------- Wheel > --- UTILITY ---------- Medium Storage Unit Makeshift Light Armor Plating > --- WEAPON ----------- Subdweller Machine Gun Light Cannon > --- INVENTORY -------- Subdweller Power Source Wheel Improved Heat Sink High-capacity Matter Pod Sensor Array Sensor Array Subdweller Laser Light Cannon Grenade Launcher Datajack [Rating: 13] Favorites ----------- Power Light Nuclear Core Engine Ion Engine Power Core Light Nuclear Core Propulsion Wheel Wheel Wheel Utility Medium Storage Unit Device Sensor Array Storage Medium Storage Unit Processor Improved Targeting Computer Protection Makeshift Light Armor Plating Weapon Light Cannon Energy Gun Subdweller Laser Ballistic Gun Subdweller Machine Gun Ballistic Cannon Light Cannon Launcher Grenade Launcher Build | -11 -10 -10 ------- Run | Yrd Mat Sub Slots Evolved . | . . . Power . | . . . Propulsion . | . . . Utility . | . . . Weapon . | . . . Parts Attached 22 | 6 11 5 Power 2 | 1 1 . Engine 1 | 1 . . Core 1 | . 1 . Reactor . | . . . Propulsion 4 | 2 2 . Treads . | . . . Leg . | . . . Wheel 4 | 2 2 . Hover . | . . . Flight . | . . . Utility 6 | 1 3 2 Device 1 | . . 1 Storage 2 | 1 1 . Processor 2 | . 2 . Hackware . | . . . Protection 1 | . . 1 Artifact . | . . . Weapon 10 | 2 5 3 Energy Gun 1 | . . 1 Energy Cannon . | . . . Ballistic Gun 4 | 2 1 1 Ballistic Cannon 4 | . 3 1 Launcher 1 | . 1 . Special Weapon . | . . . Impact Weapon . | . . . Slashing Weapon . | . . . Piercing Weapon . | . . . Special Melee Weapon . | . . . Unidentified Prototypes . | . . . Parts Lost 5 | . 2 3 Power . | . . . Propulsion 2 | . 1 1 Utility 1 | . 1 . Weapon 2 | . . 2 Highest Loss Streak 3 | . 2 3 To Critical Strikes . | . . . Average Backups 7 | . 6 9 Power . | . . . Propulsion . | . . 1 Utility 2 | . 2 3 Weapon 2 | . 2 3 Tool/Special . | . . . Unused Backups 7 | . 2 5 Power 1 | . . 1 Propulsion . | . . . Utility 4 | . 1 3 Weapon 1 | . 1 . Tool/Special 1 | . . 1 Average Slot Usage (%) 96 | . 95 98 Engine 6 | . 10 . Core 7 | . 3 14 Wheel 27 | . 27 26 Device 4 | . . 12 Storage 14 | . 14 14 Processor 6 | . 10 . Ballistic Gun 6 | . 4 11 Ballistic Cannon 21 | . 23 16 Peak Build Rating 13 | 6 12 13 Average Rating 9 | 4 8 11 On Entrance 5 | . 6 10 Avg Prop Armor Cover (%) . | . . . Naked Turns . | . . . Heaviest Build 24 | 14 22 24 Greatest Support 26 | 20 26 26 Greatest Overweight (x) 1 | . 1 . Average Overweight (x) . | . . . Largest Inventory Capacity 10 | 8 10 10 Average Capacity 9 | 6 9 10 Most Carried 10 | 1 10 10 Average Carried 7 | . 7 9 Final Capacity 10 | 8 10 10 Final Carried 9 | 1 9 8 Class Distribution -------------------- 100% | Mutant Dominant Class ---------------- Mutant | -10/Materials Mutant | -10/Subcaves Resources | -11 -10 -10 ----------- Run | Yrd Mat Sub Matter Collected 996 | 175 756 65 Remotely . | . . . Salvage Created 524 | . 485 39 Parts 38 | . 35 3 Haulers Intercepted 1 | . 1 . Recyclers Shooed . | . . . Parts Field Recycled . | . . . Retrieved Matter . | . . . Parts Self-Destructed 9 | . . 9 Prevented . | . . . Parts Restored . | . . . Kills | -11 -10 -10 ------- Run | Yrd Mat Sub Combat Hostiles Destroyed 13 | . 10 3 Guns 2 | . . 2 Cannons 8 | . 7 1 AOE 3 | . 3 . Classes Destroyed 9 | . 8 1 Builder 1 | . 1 . Hauler 1 | . 1 . Recycler 2 | . 2 . Mechanic 1 | . 1 . Operator 1 | . 1 . Watcher 2 | . 2 . Swarmer 3 | . 3 . Grunt 7 | . 7 . Subdweller 3 | . . 3 Best Kill Streak 4 | . 4 2 Combat Bots Only 3 | . 3 2 Max Kills in Single Turn 3 | . 3 1 Gunslinging . | . . . Exploded 3 | . 3 . Melee . | . . . Uniques/NPCs Destroyed . | . . . Combat | -11 -10 -10 -------- Run | Yrd Mat Sub Hostile Shots Fired 69 | . 43 26 Missed 28 | . 20 8 Hits 41 | . 23 18 Projectile 41 | . 23 18 AOE 7 | . . 7 Damage Taken 944 | . 301 643 Core 256 | . 81 175 Absorbed by Shields . | . . . Core Remaining (%) 100 | 100 . . Volleys Fired 56 | . 42 14 Largest 2 | . 2 2 Hottest 90 | . 63 90 Shots Fired 107 | . 80 27 Gun 22 | . 13 9 Cannon 82 | . 66 16 Launcher 3 | . 1 2 Special . | . . . Kinetic 103 | . 79 24 Thermal 1 | . . 1 Explosive 3 | . 1 2 Electromagnetic . | . . . Robot Hit Streak 9 | . 6 9 Robot Miss Streak 5 | . 5 1 Penetration Max . | . . . Secondary Targets . | . . . Shots Hit Robots 60 | . 40 20 Core Hits 30 | . 22 8 Critical Kills . | . . . Critical Parts Destroyed . | . . . Critical Strikes . | . . . Melee Attacks . | . . . Impact . | . . . Slashing . | . . . Piercing . | . . . Sneak Attacks . | . . . Combat Hostiles . | . . . Follow-up Attacks . | . . . Damage Inflicted 1539 | . 1022 517 Guns 199 | . 62 137 Cannons 911 | . 693 218 Explosions 429 | . 267 162 Melee . | . . . Ramming . | . . . Kinetic 1091 | . 755 336 Thermal 192 | . 173 19 Explosive 256 | . 94 162 Electromagnetic . | . . . Impact . | . . . Slashing . | . . . Piercing . | . . . Highest Corruption . | . . . Average Corruption . | . . . Corruption Purged . | . . . Corruption Blocked . | . . . Overload Shots . | . . . Overflow Damage 21 | . 21 . Projectiles . | . . . Explosions 21 | . 21 . Melee . | . . . Knockbacks 7 | . 7 . Impact . | . . . Kinetic 6 | . 6 . Secondary 1 | . 1 . Self-Inflicted Damage . | . . . Shots . | . . . Rammed . | . . . Targets Rammed . | . . . Kicked . | . . . Crushed . | . . . Highest Temperature 207 | . 207 . Average Temperature 67 | . 67 . Received Heat Transfer 180 | . 165 15 Siege Activations . | . . . Martial Activations . | . . . Shielding Activations . | . . . Robots Disrupted . | . . . Combat Hostiles . | . . . Robots Corrupted . | . . . Combat Hostiles . | . . . Parts Fried . | . . . Impact Corruptions . | . . . Robots Melted . | . . . Combat Hostiles . | . . . Parts Melted . | . . . Heat Transferred 175 | . 150 25 Parts Sabotaged . | . . . Parts Stolen . | . . . Parts Stripped . | . . . Power Chain Reactions . | . . . Alert | -11 -10 -10 ------- Run | Yrd Mat Sub Maximum Alert Level . | . . . Low Security (%) 100 | 100 100 . Level 1 . | . . . Level 2 . | . . . Level 3 . | . . . Level 4 . | . . . Level 5 . | . . . High Security . | . . . Max Security . | . . . Peak Influence 171 | . 171 . Initial . | . . . Average 53 | . 56 . Influence Increases 458 | . 458 . Destroy 0b10 Robot/C 200 | . 200 . Destroy 0b10 Robot/NC 40 | . 40 . Destroy Leader 56 | . 56 . Successful Hack 30 | . 30 . Disable Machine 75 | . 75 . Destroy Structure 57 | . 57 . Influence Decreases 458 | . 319 139 Entered New Map 67 | . . 67 Time Decay 371 | . 299 72 Lost Part 20 | . 20 . Squads Dispatched 1 | . 1 . Investigation . | . . . Extermination . | . . . Reinforcement 1 | . 1 . Assault . | . . . Garrison . | . . . Intercept . | . . . Searches Triggered . | . . . Construction Impeded . | . . . Haulers Reinforced . | . . . Active Scanning Responses . | . . . Cargo Convoy Interrupts . | . . . Stealth | -11 -10 -10 --------- Run | Yrd Mat Sub Distress Signals 1 | . 1 . Communications Jammed . | . . . Distress Signals . | . . . Times Spotted 24 | . 17 7 Peak Tracking Total 6 | . 6 4 Tactical Retreats . | . . . Traps | -11 -10 -10 ------- Run | Yrd Mat Sub Traps Triggered . | . . . Indirectly . | . . . Trap Hack Attempts . | . . . Triggered . | . . . Disarmed . | . . . Reprogrammed . | . . . Reused . | . . . Traps Extracted . | . . . Installed . | . . . Triggered . | . . . Machines | -11 -10 -10 ---------- Run | Yrd Mat Sub Machines Disabled 5 | . 5 . Max in Single Turn 3 | . 3 . Machines Repaired . | . . . Machines Dismantled . | . . . Machines Sabotaged . | . . . Overloaded Fab Kills . | . . . Hacking | -11 -10 -10 --------- Run | Yrd Mat Sub Machines Accessed 8 | . 8 . Terminals 7 | . 7 . Fabricators . | . . . Repair Stations . | . . . Recycling Units 1 | . 1 . Scanalyzers . | . . . Garrison Access . | . . . Total Hacks 27 | . 27 . Successful 16 | . 16 . Failed 11 | . 11 . Catastrophic 2 | . 2 . Database Lockouts . | . . . Manual 18 | . 18 . Terminals 25 | . 25 . Fabricators . | . . . Repair Stations . | . . . Recycling Units 2 | . 2 . Scanalyzers . | . . . Garrison Access . | . . . Terminal Hacks 9 | . 9 . Part Schematic 1 | . 1 . Locate Traps 2 | . 2 . Recall Investigation 1 | . 1 . Hauler Manifests 1 | . 1 . Registered Components 1 | . 1 . Zone Layout 3 | . 3 . Fabricator Hacks . | . . . Repair Station Hacks . | . . . Recycling Unit Hacks 2 | . 2 . Report Inventory 1 | . 1 . Retrieve Components 1 | . 1 . Scanalyzer . | . . . Garrison Access Hacks . | . . . Unauthorized Hacks 5 | . 5 . Terminals 5 | . 5 . Track 1 | . 1 . Botnet 4 | . 4 . Fabricators . | . . . Repair Stations . | . . . Recycling Units . | . . . Scanalyzers . | . . . Garrison Access . | . . . Data Cores Recovered . | . . . Used . | . . . Hacking Detections 8 | . 8 . Full Trace Events . | . . . Feedback Events . | . . . Feedback Blocked . | . . . Robot Schematics Acquired . | . . . Robots Built . | . . . Authchips . | . . . Time . | . . . Total Robot Build Rating . | . . . Part Schematics Acquired 1 | . 1 . Parts Built . | . . . Authchips . | . . . Time . | . . . Total Part Build Rating . | . . . Part Studies Acquired . | . . . Parts Repaired . | . . . Time . | . . . Parts Recycled . | . . . Recycled Matter . | . . . Retrieved Matter . | . . . Retrieved Components 2 | . 2 . Parts Scanalyzed . | . . . Part Schematics Acquired . | . . . Parts Damaged . | . . . Bothacking | -11 -10 -10 ------------ Run | Yrd Mat Sub Used RIF Installer . | . . . Robots Hacked . | . . . Non-combat . | . . . Combat . | . . . Robot Hacks Applied . | . . . Relay Couplers Released . | . . . Fabnet Peak Effective % . | . . . Robots Rewired . | . . . Allies Hacked . | . . . Hacks Repelled . | . . . Allies | -11 -10 -10 -------- Run | Yrd Mat Sub Total Allies . | . . . Largest Group . | . . . Highest-Rated Group . | . . . Highest-Rated Ally . | . . . Total Orders . | . . . Ally Attacks . | . . . Total Damage . | . . . Kills . | . . . Allies Corrupted . | . . . Allies Melted . | . . . Intel | -11 -10 -10 ------- Run | Yrd Mat Sub Active Infowar (turns) 479 | . 135 344 Sensors 344 | . . 344 T.N.C. 135 | . 135 . Robot Analysis Total . | . . . Derelict Logs Recovered . | . . . Drone Launches . | . . . Drone Recoveries . | . . . Exploration | -11 -10 -10 ------------- Run | Yrd Mat Sub Turns Passed 1169 | 39 756 374 Spaces Moved 1019 | 37 622 360 Core 2 | 2 . . Treads . | . . . Legs . | . . . Wheels 1017 | 35 622 360 Hover . | . . . Flight . | . . . Fastest Speed 50 | 50 80 90 Average Speed 88 | 78 88 90 Slowest Speed 95 | 80 95 90 Overloaded Moves . | . . . Propulsion Burnouts . | . . . Robots Hopped . | . . . Potential Cave-ins . | . . . Cave-ins Triggered . | . . . Exploration Rate (%) 39 | 3 90 24 Regions Visited 2 Branch Regions 1 Pre-discovered Areas . | . . . Known Exits Taken . | . . . Unknown Exits Taken 2 | 1 1 . Scrap Searched 3 | . . 3 Spaces Dug . | . . . Terrain Destroyed 74 | . 64 10 Melee . | . . . Projectile 1 | . 1 . AOE 73 | . 63 10 Terrain Rammed . | . . . Walls Destroyed . | . . . Machines Disabled . | . . . Actions | -11 -10 -10 --------- Run | Yrd Mat Sub Total 1175 | 43 747 385 Wait 53 | . 53 . Move 1017 | 36 621 360 Hop . | . . . Pick Up 14 | 1 10 3 Fast Attach 14 | 6 7 1 Attach 5 | . 1 4 Detach 2 | . 2 . Swap 4 | . 3 1 Drop 10 | . 8 2 Fire 56 | . 42 14 Melee . | . . . Ram . | . . . Kick . | . . . Crush . | . . . Escape Stasis . | . . . Rewire . | . . . Trap . | . . . Miscellaneous . | . . . Route ------- -11/Scrapyard -10/Materials (discovered 5 exits: [*Mat x3] / [*Min] / [*Sub]) -10/Subcaves History --------- Turn | Location | Event 15 | -11/Scrapyard | Discovered new exit (range 15) 40 | -11/Scrapyard | Entered Materials 219 | -10/Materials | Discovered new exit (range 16) 323 | -10/Materials | Build established: Mutant 371 | -10/Materials | Discovered new exit (range 14) 410 | -10/Materials | Discovered new exit (range 19) 485 | -10/Materials | Discovered new exit (range 13) 790 | -10/Materials | Discovered new exit (range 8) 796 | -10/Materials | Entered Subcaves 797 | -10/Subcaves | Approached by a straggling Scientist 829 | -10/Subcaves | Disturbed a concealed Subdweller 950 | -10/Subcaves | A swath of the cavern ceiling suddenly collapsed 1061 | -10/Subcaves | Shifting Twisted Machinery released Spk. Treads 1062 | -10/Subcaves | Shifting Twisted Machinery released Mak. Light Armor Plating 1137 | -10/Subcaves | Ambushed by Subdweller buried in earth 1141 | -10/Subcaves | Core integrity fell below 50% 1157 | -10/Subcaves | Core integrity fell below 20% 1168 | -10/Subcaves | Ambushed by Subdweller buried in earth 1170 | -10/Subcaves | Destroyed by X4-XH3(R) with Subdweller Shrapnel Launcher Last Messages --------------- collapses. SR-QB2(c): "I think it's somewhere southwest of here" SR-QB2(c): "I think it's somewhere west of here" Spk. Treads falls loose from the Twisted Machinery. Mak. Light Armor Plating falls loose from the Twisted Machinery. 01066_ Dropped Imp. Light Cannon. 01067_ Acquired Mak. Light Armor Plating. SR-QB2(c): "We're getting close, I can feel it." 01137_ SR-QB2(c) destroyed. 01137_ Com. Wheel destroyed. 01138_ MR-WI5(R): "FREEEEDUMB!" 01144_ MR-WI5(R) destroyed. 01156_ QI-C6E(R) destroyed. 01157_ Sub. Machine Gun destroyed. 01165_ Subatomizers dissect the Sub. Optics. 01168_ Grenade Launcher destroyed. 01169_ W7-MW0(R): "SLEEPOVER!" Map ----- +----------------------------------------------------+ | # ##?# ## #?????? | | ## ###??# #?????## ##?????? | | ?## #???## #???????????????? | | ??## ### #### #??## ##??????????????? | | ???######?####??#### ##??# ##?????????????? | | ???????????????????###???# ##????????????? | | ????????????????????????## ## ##???????????? | | ????????????????????????# ### ##?????????## | | ????????????????????????# #?#### ###??????## | | ????????????????????????## ##????## ######## | | ?????????????????????????###??????## ## | | ?????????????????????????????#?????## # | | ????????????????????????????# #?????#### # | | ??????????????????????????## #????????## ### ## | | ?????????????????????????## ??????????######### | | ????????????????????????## ????????????## ### | | ????????????????????????# ???????????## ## | | ????????????????????????# ????????????# | | ????????????????????????# ????????????#### | | ??????????????????????### ###?????????? ??## # | | ????????????####????### # # ###??????? #???# # | | ??????????? %% %### ###???? #???## | | ??????????? R # ##??# #????## | | ????????????% R ### #??????### | | ?????????????????#& #????????# | | ?????????????????# @ "####??????? | | ????????????????# & ; ####" ###????# | | ????????????????## ; ##??#"" ##???# | | ?????????????????#### ## #??## """"##??# | | ???????????????????# ; # ##??# """"#### | | ??????????????????# ##### #???### "" ## | | ????????????# ??? #?# ##???## ""=""## | | ??????????### # ### #???# ## " ""# | | ??????????# R ## #?### "### "# | | ????????"" " R # ### # #?##"" # | | ????????""" ## # ####" ] | | ?????????""" ??### # ## | | ?????????"#"??????###### # ### ## | | ????????? ??????????# #####?### ## | | ?????????????????????## ##?????? ### | | ??????????????????????######?????# ## ##?## | | ?????????????????????????????????###?## #???? | | ??????????????????????????????????????# ##???? | | ??????????????????????????????????????# ###????? | | ?????????????????????????????????????? #??????? | | ?????????????????????????????????????? #??????? | | ??????????????????????????????????????#####??????? | | ?????????????????????????????????????????????????? | | ?????????????????????????????????????????????????? | | ?????????????????????????????????????????????????? | +----------------------------------------------------+ Best States ------------- Heat Dissipation 25 Energy Generation 14 Energy Capacity 250 Matter Stores 300 Matter Capacity 300 Sight Range 16 Robot Scan Range 14 Terrain Scan Density 10 Armor Coverage 100 Evasion (%) 44 Targeting Accuracy 6 Item Schematics ----------------- Datajack | -10/Materials | Hacked Robot Schematics ------------------ None Fabricated ------------ Nothing Repaired ---------- Nothing Studied --------- None Alien Tech Used ----------------- None Achievements -------------- None Challenges ------------ None Game ------ Seed RecyclingFieldMachine Manual? 0 Play Time 00:14:58 Cumulative 130.3 hours Start 2025.11.29 @ 03:47:39 End 2025.11.29 @ 03:59:43 Sessions 1 Manual Loads 0 Difficulty Rogue Special Mode None Game No. 69 Rogue 69 Adventurer 0 Explorer 0 Win Type - Total 1 Types 1/0/0/0/0/0/0/0/0/0 Lore% 62 Gallery% 59 Achievement% 45 Wizard Run 0 Options --------- Layout 1 ASCII 0 Keyboard 0 Movement Mouse Keybinds 0 Fullscreen 2 Font 32/SmallcapsGlow Map View 50x35 Zoom Use 0% Tactical HUD 1 Map Filters NONE Filters NONE Steam 1 RUN: 75c18087-51e2-473a-9723-61b50a17c0a8